bitfinex/quotes_SOLUSD_20241021
["timestamp","ask_amount","ask_price","bid_price","bid_amount"]
[1729521790744,6.3469715,164.8,164.66,6.0277]
[1729521791060,6.3469715,164.8,164.67,21.21389558]
[1729521791256,6.0697,164.76,164.68,23.776884]
[1729521791460,6.0697,164.76,164.71,6.0711]
[1729521791766,6.3469715,164.8,164.72,6.0708]
[1729521792344,6.0686,164.79,164.73,6.0704]
[1729521792847,6.3469715,164.8,164.72,15.1772]
[1729521793362,6.072,164.69,164.64,6.0735]
[1729521793552,6.072,164.69,164.64,6.0738]
[1729521793957,0.1,164.74,164.63,15.1853]
[1729521794171,6.0728,164.67,164.63,15.1853]
[1729521794669,6.0718,164.7,164.64,15.1846]
[1729521794869,37.4978,164.76,164.61,21.6842]
[1729521795165,0.1,164.72,164.57,21.6842]
[1729521795366,6.0735,164.65,164.59,21.2647]
[1729521795673,15.1798,164.7,164.57,21.6842]
[1729521795848,6.0723,164.68,164.61,6.0749]
[1729521796043,6.0729,164.67,164.61,6.0749]
[1729521796244,6.0729,164.67,164.62,6.0744]
[1729521796558,6.3465641,164.71,164.59,0.06039203]
[1729521796760,6.3465641,164.71,164.67,6.0727]
[1729521797058,6.0701,164.75,164.69,6.0718]
[1729521797260,6.0702,164.74,164.67,21.2535]
[1729521797453,6.0702,164.74,164.67,15.1811]
[1729521797762,6.0702,164.74,164.68,6.0723]
[1729521798067,12.41289222,164.78,164.68,23.776884]
[1729521798266,6.0683,164.79,164.73,6.0702]
[1729521798449,6.0711,164.72,164.66,27.8874]
[1729521798659,6.0711,164.72,164.66,21.8146]
[1729521798853,6.0713,164.71,164.65,15.1834]
[1729521799045,6.0711,164.72,164.66,6.0731]
[1729521799248,6.073,164.67,164.62,22.6165]
[1729521799548,6.0735,164.65,164.61,15.1865]
[1729521799964,6.0735,164.65,164.59,6.0756]
[1729521800169,6.0742,164.64,164.58,37.6349]
[1729521800357,6.0742,164.64,164.59,6.0756]
[1729521800554,6.0741,164.64,164.58,37.6349]
[1729521800964,6.0733,164.66,164.6,21.2634]
[1729521801151,6.0733,164.66,164.61,6.0748]
[1729521801356,6.073,164.67,164.61,6.0748]
[1729521801668,16.0838,164.71,164.58,16.3689]
[1729521801669,6.0724,164.68,164.58,16.3689]
[1729521801846,22.1597,164.75,164.67,6.0724]
[1729521802046,22.1597,164.75,164.67,6.0725]
[1729521802246,6.071,164.72,164.67,6.0725]
[1729521803059,15.1731,164.77,164.66,15.1825]
[1729521803266,6.0705,164.73,164.68,6.0723]
[1729521803567,6.0705,164.73,164.67,6.0726]
[1729521803948,6.0694,164.76,164.67,6.0726]
[1729521804161,20.0,164.76,164.67,6.0532]
[1729521804363,6.0705,164.73,164.68,6.0723]
[1729521805068,6.0705,164.73,164.67,27.3076]
[1729521805069,6.0707,164.73,164.67,27.3076]
[1729521805773,6.0709,164.72,164.67,27.3076]
[1729521806066,20.0,164.76,164.63,6.4629]
[1729521806067,6.0725,164.68,164.63,6.4629]
[1729521806278,6.0725,164.68,164.63,12.5369]
[1729521806477,20.0,164.73,164.63,6.4629]
[1729521806653,6.0719,164.7,164.64,21.2579]
[1729521806972,20.0,164.73,164.64,21.2579]
[1729521806973,6.072,164.69,164.64,21.2579]
[1729521808169,15.90705252,165.05,164.69,6.0717]
[1729521808170,6.07,164.75,164.69,6.0717]
[1729521808379,30.0,164.7,164.69,6.0717]
[1729521808561,6.0706,164.73,164.68,21.2526]
[1729521809163,6.34441544,164.77,164.64,23.776884]
[1729521809360,6.071,164.72,164.67,6.0726]
[1729521809563,6.0713,164.71,164.66,6.0731]
[1729521809768,6.0716,164.71,164.65,21.2565]
[1729521810584,0.1,164.75,164.63,6.4629]
[1729521810755,6.0726,164.68,164.64,6.0737]
[1729521810960,15.1763,164.73,164.64,6.0737]
[1729521811165,6.0715,164.71,164.64,6.0738]
[1729521811381,6.0716,164.7,164.65,21.2568]
[1729521811971,30.3488,164.76,164.65,15.1836]
[1729521812168,6.0713,164.71,164.66,6.0728]
[1729521812554,30.3488,164.76,164.63,6.4629]
[1729521812861,6.0718,164.7,164.65,6.0734]
[1729521813169,6.0718,164.7,164.61,21.2622]
[1729521813170,15.1792,164.7,164.61,21.2622]
[1729521813478,6.0743,164.63,164.59,6.2135]
[1729521813671,6.0743,164.63,164.58,22.4447]
[1729521813672,6.0744,164.63,164.58,22.4447]
[1729521813863,6.0744,164.63,164.58,16.3689]
[1729521814057,6.0744,164.63,164.58,22.4448]
[1729521814779,6.0746,164.62,164.58,16.3689]
[1729521815081,6.075,164.61,164.57,21.2666]
[1729521815589,36.0746,164.62,164.57,21.2666]
[1729521816590,6.0759,164.59,164.54,21.2709]
[1729521817168,30.0,164.62,164.53,16.3633]
[1729521817374,36.0749,164.62,164.56,6.0765]
[1729521817685,36.0749,164.62,164.56,21.2684]
[1729521817872,6.075,164.61,164.56,21.2684]
[1729521818069,30.0,164.62,164.56,15.1919]
[1729521818662,6.0749,164.61,164.56,15.1919]
[1729521818872,6.0749,164.61,164.56,21.2686]
[1729521819186,6.0756,164.6,164.56,15.1919]
[1729521819577,30.0,164.62,164.53,16.3633]
[1729521819578,36.0747,164.62,164.53,16.3633]
[1729521819889,6.075,164.61,164.56,21.2679]
[1729521820384,30.0,164.62,164.58,6.0759]
[1729521820600,30.0,164.62,164.54,23.776884]
[1729521820766,30.0,164.62,164.59,6.0756]
[1729521820967,30.0,164.6,164.55,21.27]
[1729521821166,36.0753,164.6,164.53,16.3633]
[1729521821486,6.0753,164.6,164.56,15.192]
[1729521821870,6.0753,164.6,164.56,21.2687]
[1729521822073,20.0,164.65,164.56,15.192]
[1729521822283,6.0743,164.63,164.58,6.0759]
[1729521822587,6.0728,164.67,164.62,6.0743]
[1729521822761,30.0,164.63,164.61,21.2622]
[1729521823083,30.0,164.63,164.61,15.1873]
[1729521823395,21.2114,164.71,164.59,6.0755]
[1729521823396,6.0739,164.64,164.59,6.0755]
[1729521823975,43.876884,164.7,164.59,6.0755]
[1729521824290,43.776884,164.68,164.58,15.1899]
[1729521824488,6.0746,164.62,164.58,21.2659]
[1729521824667,20.0,164.66,164.59,6.0756]
[1729521824877,6.0748,164.62,164.57,6.0763]
[1729521825381,30.0,164.61,164.57,6.0763]
[1729521825887,36.0749,164.61,164.56,21.2681]
[1729521827492,30.0,164.61,164.51,6.2915]
[1729521827790,6.0763,164.58,164.53,6.0777]
[1729521828404,6.0763,164.58,164.51,6.2915]
[1729521828405,30.0,164.61,164.51,6.2915]
[1729521828573,36.075,164.61,164.56,6.0765]
[1729521828771,6.0754,164.6,164.55,6.0771]
[1729521829504,6.0753,164.6,164.51,6.2915]
[1729521830092,30.0,164.61,164.57,6.0761]
[1729521831595,30.0,164.61,164.56,15.1912]
[1729521831780,6.0755,164.6,164.56,15.1912]
[1729521832178,6.0755,164.6,164.56,21.2678]
[1729521832786,30.0,164.61,164.57,6.0763]
[1729521832993,30.0,164.61,164.58,6.0757]
[1729521833192,30.0,164.59,164.57,15.1906]
[1729521833494,6.0739,164.64,164.54,23.776884]
[1729521833495,6.0741,164.64,164.59,6.0753]
[1729521833880,6.0741,164.64,164.54,23.776884]
[1729521834082,6.048,164.67,164.54,23.776884]
[1729521834083,6.0731,164.66,164.6,6.0749]
[1729521834286,6.0726,164.68,164.63,6.0739]
[1729521834482,6.0726,164.68,164.59,15.1892]
[1729521834483,30.0,164.64,164.62,6.0744]
[1729521834678,30.0,164.64,164.63,6.0742]
[1729521835094,30.0,164.64,164.62,15.186]
[1729521835303,6.34656907,164.71,164.69,21.2515]
[1729521835683,1.05631063,164.78,164.7,21.2505]
[1729521835885,6.0688,164.78,164.7,21.2505]
[1729521836084,6.95145571,164.81,164.72,6.0707]
[1729521837102,6.0681,164.8,164.7,15.179]
[1729521837308,5.5681,164.8,164.7,21.2503]
[1729521837598,5.5681,164.8,164.72,6.0707]
[1729521838606,6.0685,164.79,164.7,21.2503]
[1729521838900,6.0685,164.79,164.7,15.179]
[1729521838901,20.0,164.79,164.7,15.179]
[1729521839101,6.0691,164.77,164.7,15.179]
[1729521839280,6.0691,164.77,164.7,21.2505]
[1729521840178,6.0694,164.76,164.7,15.179]
[1729521840498,6.0699,164.75,164.66,6.5742]
[1729521840804,6.0699,164.75,164.68,6.0721]
[1729521841297,20.1,164.79,164.68,6.0721]
[1729521841298,0.1,164.78,164.68,6.0721]
[1729521841504,6.0701,164.74,164.68,6.0721]
[1729521841714,6.0712,164.71,164.64,6.0738]
[1729521841881,20.2,164.77,164.63,15.4654]
[1729521841882,20.0,164.75,164.63,15.4654]
[1729521842077,20.0,164.73,164.64,21.2584]
[1729521842280,6.0715,164.71,164.64,21.2584]
[1729521842702,6.0716,164.7,164.64,21.2584]
[1729521843001,20.0,164.77,164.63,15.4654]
[1729521843296,26.0701,164.74,164.68,6.0721]
[1729521844477,6.0694,164.76,164.7,6.0715]
[1729521844779,6.07,164.75,164.68,6.0723]
[1729521845201,6.07,164.75,164.69,6.072]
[1729521845777,15.1711,164.79,164.64,23.776884]
[1729521846002,6.0697,164.76,164.69,6.0717]
[1729521846683,20.0,164.76,164.69,6.0717]
[1729521846896,26.0697,164.76,164.69,6.0717]
[1729521847306,6.0699,164.75,164.69,6.0717]
[1729521847607,6.0706,164.73,164.67,6.0726]
[1729521847988,6.0691,164.77,164.71,6.071]
[1729521848389,6.0694,164.76,164.63,15.5654]
[1729521848588,6.0694,164.76,164.7,6.0714]
[1729521849692,6.0686,164.78,164.72,6.0708]
[1729521850687,15.7749128,164.81,164.68,15.2529]
[1729521850688,0.6051128,164.81,164.68,15.2529]
[1729521850897,0.6051128,164.81,164.8,6.0679]
[1729521851410,0.6051128,164.81,164.8,29.844784]
[1729521853311,12.40417451,164.94,164.87,6.0651]
[1729521853694,6.0633,164.93,164.87,6.0651]
[1729521853893,6.0631,164.93,164.86,21.2295]
[1729521854489,21.05565048,164.96,164.84,6.0663]
[1729521854688,6.0635,164.93,164.86,6.0657]
[1729521855516,6.0635,164.92,164.86,6.0657]
[1729521856020,20.0,164.93,164.87,6.0651]
[1729521856897,6.0632,164.93,164.87,6.0651]
[1729521858493,6.0628,164.94,164.87,6.065]
[1729521858697,20.0,164.93,164.87,6.065]
[1729521859807,6.0631,164.93,164.87,6.065]
[1729521861217,6.34035191,164.97,164.89,6.0646]
[1729521861218,6.0627,164.95,164.89,6.0646]
[1729521861604,6.34035191,164.97,164.89,6.0646]
[1729521861805,12.40205191,164.97,164.91,6.0636]
[1729521862008,6.0617,164.97,164.91,21.2234]
[1729521862523,0.6051128,164.98,164.94,6.0625]
[1729521862695,0.6051128,164.98,164.95,6.0623]
[1729521862896,0.6051128,164.98,164.9,6.0642]
[1729521863101,0.6051128,164.98,164.95,6.062]
[1729521863419,0.6051128,164.98,164.97,12.5767]
[1729521867798,0.6051128,164.98,164.97,56.353584]
[1729521867999,0.25,165.0,164.99,6.0609]
[1729521870220,0.25,165.0,164.95,21.218]
[1729521870801,0.25,165.0,164.95,15.156]
[1729521871225,0.25,165.0,164.89,6.6068]
[1729521871403,6.0613,164.98,164.92,6.0634]
[1729521871721,6.0613,164.98,164.92,21.2222]
[1729521872308,6.0613,164.98,164.93,6.0631]
[1729521873001,0.25,165.0,164.89,6.6068]
[1729521873201,0.25,165.0,164.94,6.0627]
[1729521873440,6.061,164.99,164.94,6.0627]
[1729521873630,6.061,164.99,164.93,6.0631]
[1729521874120,6.3106,165.0,164.94,6.0624]
[1729521874503,6.061,164.99,164.93,6.0631]
[1729521874707,0.25,165.0,164.89,6.66719203]
[1729521875023,0.25,165.0,164.99,6.0609]
[1729521875529,0.25,165.0,164.98,15.153]
[1729521875832,0.25,165.0,164.92,15.5568]
[1729521875833,0.25,165.0,164.96,6.0617]
[1729521876003,0.25,165.0,164.98,6.061]
[1729521876521,0.25,165.0,164.92,15.5568]
[1729521876522,0.25,165.0,164.97,15.1536]
[1729521877221,0.25,165.0,164.95,6.0623]
[1729521877605,0.25,165.0,164.95,15.1557]
[1729521878011,0.25,165.0,164.95,21.2177]
[1729521879033,0.25,165.0,164.94,6.0627]
[1729521879207,6.3106,165.0,164.94,6.0627]
[1729521880025,0.25,165.0,164.96,6.062]
[1729521880325,30.25,165.0,164.9,20.0]
[1729521880628,30.25,165.0,164.96,6.062]
[1729521881004,0.25,165.0,164.96,6.062]
[1729521885012,0.25,165.0,164.95,15.156]
[1729521885219,6.3106,165.0,164.95,21.2183]
[1729521885731,0.25,165.0,164.89,6.6068]
[1729521885926,6.0612,164.99,164.89,6.6068]
[1729521886230,6.0612,164.99,164.94,6.0627]
[1729521886726,6.0616,164.98,164.93,21.2206]
[1729521887427,6.061,164.99,164.94,6.0628]
[1729521889727,6.0614,164.98,164.93,21.2206]
[1729521890733,6.0609,164.99,164.94,6.0625]
[1729521891115,6.0613,164.98,164.94,6.0625]
[1729521891726,6.0613,164.98,164.93,15.1576]
[1729521891927,6.0613,164.98,164.93,21.2206]
[1729521894045,6.062,164.97,164.93,15.1576]
[1729521895026,0.25,165.0,164.92,6.0634]
[1729521895223,0.25,165.0,164.89,6.6068]
[1729521895224,6.0621,164.96,164.91,6.0638]
[1729521895449,6.0621,164.96,164.92,6.0634]
[1729521895818,6.0618,164.97,164.92,6.0634]
[1729521896547,6.0618,164.97,164.93,6.063]
[1729521898445,6.0614,164.98,164.93,6.063]
[1729521898622,6.0614,164.98,164.94,6.0627]
[1729521900315,6.061,164.99,164.94,6.0627]
[1729521900517,6.0615,164.98,164.93,21.2209]
[1729521900717,0.25,165.0,164.92,6.0634]
[1729521901144,0.25,165.0,164.98,6.0611]
[1729521901340,30.0,164.99,164.98,6.0611]
[1729521901641,30.0,164.99,164.97,15.1538]
[1729521901849,30.0,164.99,164.97,20.7154]
[1729521902042,0.25,165.0,164.97,20.7154]
[1729521903036,0.25,165.0,164.98,6.0613]
[1729521903246,0.25,165.0,164.97,14.6538]
[1729521903427,0.25,165.0,164.97,20.7154]
[1729521905123,0.25,165.0,164.97,14.6538]
[1729521905323,0.25,165.0,164.98,6.0612]
[1729521905549,0.25,165.0,164.89,6.7068]
[1729521905731,0.25,165.0,164.98,6.0613]
[1729521906933,0.25,165.0,164.92,22.5448]
[1729521907138,6.0612,164.99,164.95,6.0623]
[1729521907326,0.25,165.0,164.94,15.1565]
[1729521907646,6.0617,164.97,164.94,15.1565]
[1729521907849,15.1524,164.99,164.88,22.4089]
[1729521908034,6.0629,164.94,164.89,15.1614]
[1729521908346,6.0627,164.95,164.9,15.1606]
[1729521908721,20.0,164.97,164.88,22.4089]
[1729521908921,26.0609,164.99,164.95,6.0623]
[1729521909235,20.0,164.99,164.88,22.4089]
[1729521909436,6.0622,164.96,164.91,21.2231]
[1729521909637,6.0625,164.95,164.91,15.1593]
[1729521909838,6.0625,164.95,164.91,21.2231]
[1729521910245,6.0625,164.95,164.91,15.1593]
[1729521910454,6.0625,164.95,164.88,22.4089]
[1729521910455,20.0,164.97,164.88,22.4089]
[1729521910953,6.0627,164.95,164.9,6.0641]
[1729521911558,0.25,165.0,164.88,22.4089]
[1729521911766,0.25,165.0,164.89,15.1616]
[1729521912047,6.0614,164.98,164.93,6.0629]
[1729521912429,0.25,165.0,164.93,6.0629]
[1729521912849,6.0618,164.97,164.93,6.0629]
[1729521913160,6.0618,164.97,164.92,15.1583]
[1729521913161,6.0618,164.97,164.92,21.2217]
[1729521913538,0.25,165.0,164.92,21.2217]
[1729521913539,6.0621,164.96,164.92,21.2217]
[1729521913738,6.0618,164.97,164.92,21.2217]
[1729521914335,6.0618,164.97,164.92,15.1583]
[1729521915452,6.0615,164.98,164.92,21.2214]
[1729521915634,20.25,165.0,164.92,15.1583]
[1729521915830,6.0618,164.97,164.92,15.1583]
[1729521916555,6.0621,164.96,164.9,6.0641]
[1729521916940,43.776884,164.99,164.9,6.0641]
[1729521917455,6.0623,164.96,164.91,6.0638]
[1729521918044,6.0626,164.95,164.9,21.2246]
[1729521918249,6.0621,164.96,164.91,6.0638]
[1729521918546,6.0621,164.96,164.9,15.1604]
[1729521918547,6.0621,164.96,164.9,21.2245]
[1729521919254,43.776884,164.99,164.9,21.2245]
[1729521919457,0.1,164.98,164.88,28.4736]
[1729521919648,6.0637,164.92,164.87,21.228]
[1729521919848,6.064,164.91,164.85,6.0658]
[1729521920053,6.0631,164.93,164.86,6.0654]
[1729521920242,6.0625,164.95,164.89,6.0643]
[1729521920854,6.0625,164.95,164.84,21.6107]
[1729521920855,6.0623,164.96,164.9,6.064]
[1729521921155,6.0625,164.95,164.9,6.064]
[1729521921341,6.0625,164.95,164.89,6.0645]
[1729521921675,6.062,164.97,164.84,21.6107]
[1729521921959,26.0617,164.97,164.84,21.6107]
[1729521922161,6.0621,164.96,164.9,6.064]
[1729521923939,20.0,164.99,164.85,20.0]
[1729521924139,6.58827689,165.0,164.85,20.0]
[1729521924140,44.026884,165.0,164.85,20.1]
[1729521924352,6.0617,164.97,164.91,6.0638]
[1729521924562,6.0622,164.96,164.91,6.0638]
[1729521925057,6.0628,164.94,164.89,6.0645]
[1729521925261,6.0632,164.93,164.88,6.0649]
[1729521925436,6.0632,164.93,164.87,15.1631]
[1729521925437,6.0632,164.93,164.87,21.2283]
[1729521926244,6.0628,164.94,164.88,6.0647]
[1729521926758,43.776884,164.95,164.88,6.0647]
[1729521926963,6.0632,164.93,164.86,15.1643]
[1729521927144,6.0632,164.93,164.87,6.0651]
[1729521927345,6.0632,164.93,164.87,21.2284]
[1729521927866,23.776884,164.95,164.87,15.1634]
[1729521928046,20.0,164.94,164.84,21.6107]
[1729521928245,6.0639,164.92,164.84,21.6107]
[1729521928562,6.0639,164.92,164.86,6.0656]
[1729521929766,6.0639,164.92,164.87,6.0652]
[1729521930349,23.776884,164.93,164.86,15.164]
[1729521930645,20.0,164.94,164.86,15.164]
[1729521930842,6.0635,164.93,164.87,6.0651]
[1729521931261,20.0,164.95,164.87,6.0651]
[1729521931461,23.776884,164.94,164.86,15.164]
[1729521931668,20.0,164.93,164.84,27.6771]
[1729521931842,6.0645,164.9,164.84,36.7768]
[1729521932040,36.064,164.91,164.85,6.0659]
[1729521932575,30.0,164.91,164.86,6.0654]
[1729521932937,30.0,164.91,164.84,21.6107]
[1729521933263,20.0,164.93,164.87,6.0651]
[1729521933264,26.0632,164.93,164.87,6.0651]
[1729521933478,26.0632,164.93,164.87,21.2281]
[1729521934134,26.0632,164.93,164.81,6.33906949]
[1729521934135,23.776884,164.92,164.81,6.33906949]
[1729521934335,26.0642,164.91,164.85,6.066]
[1729521934744,20.0,164.91,164.81,6.33906949]
[1729521934940,20.0,164.91,164.86,6.0656]
[1729521936944,23.776884,164.95,164.82,6.33988066]
[1729521937146,15.2643,164.99,164.91,6.0638]
[1729521937353,12.40030307,164.98,164.92,6.0634]
[1729521937644,15.1643,164.99,164.9,6.0642]
[1729521937843,21.2256,164.99,164.92,21.2221]
[1729521938060,15.2643,164.99,164.92,15.1587]
[1729521938263,6.0614,164.98,164.92,15.1587]
[1729521938561,15.1643,164.99,164.93,6.063]
[1729521938775,15.1643,164.99,164.94,6.0626]
[1729521938946,15.1643,164.99,164.93,6.063]
[1729521940472,15.1643,164.99,164.92,15.1584]
[1729521940655,23.776884,164.96,164.85,21.9517]
[1729521940986,30.0,164.93,164.85,21.9517]
[1729521941181,30.0,164.93,164.89,6.0643]
[1729521942576,23.776884,164.92,164.88,21.2266]
[1729521942983,30.0,164.93,164.89,6.0645]
[1729521943493,43.876884,164.98,164.85,21.9517]
[1729521943664,43.776884,164.96,164.92,6.0635]
[1729521943977,6.0625,164.95,164.86,6.0657]
[1729521944180,23.776884,164.93,164.88,6.0647]
[1729521944694,23.776884,164.93,164.85,21.9517]
[1729521944975,23.776884,164.93,164.89,6.0644]
[1729521945182,15.2643,164.99,164.85,21.9517]
[1729521945363,6.0617,164.97,164.85,21.9517]
[1729521945757,6.0617,164.97,164.91,6.0636]
[1729521946359,6.0626,164.95,164.85,21.9517]
[1729521946559,23.776884,164.94,164.89,6.0643]
[1729521946974,29.839884,164.94,164.89,6.0643]
[1729521947787,15.1643,164.99,164.91,6.0635]
[1729521947788,6.0619,164.97,164.91,6.0635]
[1729521947969,6.0621,164.96,164.91,6.0635]
[1729521948162,12.40093784,164.96,164.91,6.0635]
[1729521948585,6.33883784,164.96,164.92,6.0635]
[1729521949090,6.33883784,164.96,164.91,6.0638]
[1729521949761,23.776884,164.96,164.91,6.0638]
[1729521949965,30.11558005,164.96,164.91,6.0638]
[1729521950465,36.17768005,164.96,164.91,6.0638]
[1729521952564,36.17768005,164.96,164.92,6.0635]
[1729521953579,36.17768005,164.96,164.9,15.1599]
[1729521953580,36.17768005,164.96,164.91,6.0637]
[1729521953790,36.17768005,164.96,164.9,15.1599]
[1729521953973,30.11558005,164.96,164.85,21.9517]
[1729521954174,23.776884,164.93,164.87,15.1629]
[1729521954479,6.0638,164.92,164.87,21.2282]
[1729521955476,30.0,164.91,164.87,21.2282]
[1729521955883,36.0639,164.91,164.87,15.1629]
[1729521956192,30.0,164.91,164.87,21.2282]
[1729521957282,30.0,164.91,164.84,6.0661]
[1729521957283,6.0646,164.89,164.84,6.0661]
[1729521957467,29.841184,164.9,164.85,6.066]
[1729521958994,6.0646,164.89,164.85,6.066]
[1729521959368,23.776884,164.9,164.84,15.1661]
[1729521959568,6.0667,164.84,164.82,6.33916824]
[1729521959788,6.0669,164.83,164.78,6.0686]
[1729521959987,23.776884,164.82,164.73,21.7469]
[1729521960189,23.776884,164.82,164.48,30.80947045]
[1729521960190,0.1,164.7,164.59,6.0757]
[1729521960371,0.1,164.69,164.65,15.1831]
[1729521960705,53.876884,164.69,164.65,15.1831]
[1729521961009,0.1,164.65,164.57,0.6051128]
[1729521961169,61.3645771,164.69,164.57,0.6051128]
[1729521961170,0.1,164.62,164.57,0.6051128]
[1729521961370,0.1,164.59,164.57,0.6051128]
[1729521961577,30.1,164.58,164.57,0.6051128]
[1729521961774,53.876884,164.58,164.57,0.6051128]
[1729521962014,23.776884,164.57,164.51,6.0783]
[1729521962219,23.776884,164.55,164.41,0.1]
[1729521962435,14.8189981,164.56,164.53,6.0779]
[1729521962436,4.52928912,164.54,164.53,6.0779]
[1729521962614,30.0,164.58,164.53,6.0779]
[1729521962902,30.99383482,164.57,164.45,0.1]
[1729521963099,23.776884,164.57,164.53,6.0777]
[1729521963308,23.776884,164.57,164.45,0.1]
[1729521963620,30.0,164.58,164.56,6.0766]
[1729521963812,0.1,164.64,164.47,0.1]
[1729521963999,0.1,164.63,164.56,6.0765]
[1729521964327,0.1,164.62,164.52,21.2729]
[1729521964514,23.876884,164.62,164.53,6.0778]
[1729521964916,23.876884,164.62,164.54,6.0772]
[1729521965404,23.876884,164.62,164.54,6.0773]
[1729521965596,23.776884,164.62,164.48,0.1]
[1729521965804,23.776884,164.62,164.57,6.0763]
[1729521966003,23.776884,164.62,164.57,6.0762]
[1729521967517,23.776884,164.62,164.58,6.076]
[1729521967943,23.776884,164.62,164.48,0.1]
[1729521968116,1.39428083,164.69,164.64,6.0738]
[1729521968306,0.1,164.71,164.65,6.0733]
[1729521968507,0.1,164.71,164.53,23.776884]
[1729521968508,0.1,164.71,164.64,6.0736]
[1729521968906,0.1,164.71,164.54,0.1]
[1729521969101,1.15716919,164.73,164.53,23.776884]
[1729521969102,0.1,164.69,164.62,6.0745]
[1729521969690,0.1,164.67,164.61,6.0748]
[1729521969891,0.1,164.66,164.59,6.0755]
[1729521970296,23.876884,164.66,164.6,6.0753]
[1729521970588,30.22803353,164.66,164.6,6.0753]
[1729521970784,30.22803353,164.66,164.52,23.1608]
[1729521970785,36.30113353,164.66,164.52,23.1608]
[1729521970987,23.876884,164.63,164.52,23.1608]
[1729521971180,23.876884,164.63,164.33,42.57777474]
[1729521971181,0.1,164.56,164.39,6.5385]
[1729521971398,29.954084,164.55,164.48,6.0797]
[1729521971711,23.876884,164.55,164.48,6.0797]
[1729521971904,0.1,164.54,164.47,6.0799]
[1729521972111,23.776884,164.53,164.47,6.0799]
[1729521972280,23.776884,164.53,164.48,6.0794]
[1729521972593,30.0,164.54,164.53,6.0779]
[1729521972594,53.776884,164.54,164.53,6.0779]
[1729521972800,30.0,164.54,164.53,6.0779]
[1729521973309,0.1,164.65,164.58,6.0759]
[1729521973602,30.0,164.59,164.58,6.0759]
[1729521974895,6.35114953,164.66,164.6,6.075]
[1729521975096,23.776884,164.65,164.6,6.075]
[1729521975405,23.776884,164.65,164.56,6.0768]
[1729521975584,23.776884,164.65,164.61,6.0747]
[1729521975795,30.0,164.62,164.61,6.0749]
[1729521976508,6.35114953,164.66,164.64,6.0737]
[1729521976805,30.0,164.65,164.64,6.0737]
[1729521977310,6.34909271,164.71,164.69,6.0718]
[1729521977801,6.34909271,164.71,164.57,0.1]
[1729521977802,30.0,164.7,164.57,0.1]
[1729521978102,30.0,164.7,164.64,15.1844]
[1729521978288,23.776884,164.69,164.56,20.0]
[1729521978484,29.848884,164.69,164.63,6.0742]
[1729521978800,23.776884,164.66,164.63,6.0742]
[1729521979903,30.0,164.65,164.64,6.0738]
[1729521980096,30.0,164.65,164.56,20.0]
[1729521980281,30.0,164.65,164.62,6.0745]
[1729521980282,23.776884,164.64,164.62,6.0745]
[1729521980480,23.776884,164.64,164.61,6.0749]
[1729521980690,23.776884,164.64,164.6,15.1876]
[1729521981907,23.776884,164.62,164.6,15.1876]
[1729521982712,23.776884,164.6,164.56,15.1916]
[1729521982899,29.852184,164.6,164.55,6.0771]
[1729521983099,0.1,164.59,164.52,15.1948]
[1729521983402,23.776884,164.6,164.54,6.0775]